{"text_format":"3","workbook":"xlsx","n_sheets":3,"sheets":["Valoración","HTA","DM"],"not_rendered":{"images":1},"read":"whole","date_system":"1900"}

{"sheet":"Valoración","index":0,"n_rows":44,"n_cols":10,"rows_kept":44,"merged":[[2,1,2,8],[4,4,4,6],[6,1,6,3],[37,1,37,2]]}
[]
[]
[null,"Actividades de Enfermedades No Trasmisibles"]
[]
[null,"Periodo : "]
[]
[null,"DIRESA / RED / M. Red / EE.SS :"]
[]
[]
[null,"FACTORES DE RIESGO"]
[null,"FACTORES DE RIESGO","UNIDAD MEDIDA","TOTAL","05a - 11a","12a - 17a","18a - 29a","30a - 39a","40a - 59a","A. Mayor\n60a +"]
[null,"Sobrepeso ","Persona",{"$f":"SUM(E12:J12)","v":0}]
[null,"Obesidad","Persona",{"$f":"SUM(E13:J13)","v":0}]
[null,"Obesidad I","Persona",{"$f":"SUM(G14:J14)","v":0}]
[null,"Obesidad II","Persona",{"$f":"SUM(G15:J15)","v":0}]
[null,"Obesidad III","Persona",0]
[null,"Problemas relacionados con el Tabaco","Persona",{"$f":"SUM(F17:J17)","v":0}]
[null,"Problemas relacionados con el Alcohol","Persona",{"$f":"SUM(E18:J18)","v":0}]
[null,"Problemas relacionados con la falta ejercicio físico (sedentarismo)","Persona",0]
[null,"Problemas relacionados con la dieta y hábitos alimenticios inapropiados","Persona",0]
[null,"Historia familiar de diabetes mellitus","Persona",0]
[null,"Historia familiar de otras Enfermedades Endocrinas, Nutricionales y Metabólicas","Persona",0]
[null,"Adiposidad localizada ","Persona",0]
[null,"Dislipidemia","Persona",0]
[null,"Glisemia basal alterada (de 110 a 125 mg/dl)","Persona",0]
[null,"Tolerancia a la glucosa alterada (de 140 a 199 mg/dl) ","Persona",0]
[null,"Examen Presion Sanguínea","Normal",{"$f":"SUM(G27:J27)","v":0}]
[null,null,"Anormal",{"$f":"SUM(G28:J28)","v":0}]
[]
[null,"VALORACIÓN CLÍNICA Y TAMIZAJE LABORATORIAL DE ENFERMEDADES CRÓNICAS NO TRANSMISIBLES – 3000015"]
[null,"Clasificación","UNIDAD MEDIDA","TOTAL ","05a - 11a","12a - 17a","18a - 29a","30a - 39a","40a - 59a","60 y más"]
[null,"Valoración Clínica sin factores de riesgo","Persona",{"$f":"SUM(E32:J32)","v":0}]
[null,"Valoración Clínica con factores de riesgo","Persona",{"$f":"SUM(E33:J33)","v":0}]
[null,"Valoración Clínica con factores de riesgo y Entrega de Resultados","Persona",{"$f":"SUM(E34:J34)","v":0}]
[null,"Valoración Clínica y tamizaje de laboratorio","Persona",{"$f":"SUM(I35:J35)","v":0}]
[null,"TOTAL","Persona",null,{"$f":"E32","v":0},{"$f":"F32","v":0},0,0,{"$f":"I32+I35","v":0},{"$f":"J32+J35","v":0}]
[null,"Evaluacion de Perimetro Abdominal"]
[{"$nulls":3},"TOTAL ","05a - 11a","12a - 17a","18a - 29a","30a - 39a","40a - 59a","60 y más"]
[null,"Normal","Persona",{"$f":"SUM(E39:J39)","v":0}]
[null,"Anormal","Persona",{"$f":"SUM(E40:J40)","v":0}]
[null,"TOTAL DE EVALUACIONES","Persona",{"$f":"SUM(E41:J41)","v":0}]
[]
[null,"Consejería Integral"]
[null," Post tamizaje","Persona",{"$f":"SUM(E44:J44)","v":0}]

{"sheet":"HTA","index":1,"n_rows":61,"n_cols":10,"rows_kept":61,"merged":[[2,0,2,10]]}
[]
[]
["Actividades de Enfermedades No Trasmisibles"]
[]
["CASOS DIAGNOSTICADOS"]
[null,"DIAGNOSTICO","UNIDAD MEDIDA","TOTAL","05a - 11a","12a - 17a","18a - 29a","30a - 39a","40a - 59a","60 y más"]
[null,"Hipertensión esencial (primaria)","Caso",{"$f":"SUM(E7:J7)","v":0}]
[null,"Retinopatía hipertensiva","Caso",{"$f":"SUM(E8:J8)","v":0}]
[null,"Nefropatía hipertensiva","Caso",0]
[]
["TRATAMIENTO Y CONTROL A PERSONAS CON DIAGNÓSTICO DE HIPERTENSIÓN ARTERIAL"]
["MANEJO DE EMERGENCIA O URGENCIA HIPERTENSIVA (5001601)"]
[null,"DIAGNOSTICO","UNIDAD MEDIDA","TOTAL","05a - 11a","12a - 17a","18a - 29a","30a - 39a","40a - 59a","60 y más"]
[null,"Manejo de la urgencia hipertensiva","Persona atendida",{"$f":"SUM(E14:J14)","v":0}]
[null,"Manejo de la emergencia hipertensiva","Persona atendida",{"$f":"SUM(E15:J15)","v":0}]
[null,"TOTAL","PERSONA ATENDIDA",{"$f":"SUM(E16:J16)","v":0},{"$f":"SUM(E14:E15)","v":0},{"$f":"SUM(F14:F15)","v":0},0,0,0,0]
[]
[]
["TRATAMIENTO Y CONTROL DE PERSONAS CON DISLIPIDEMIAS (5001602)"]
[null,"DIAGNOSTICO","UNIDAD MEDIDA","TOTAL","05a - 11a","12a - 17a","18a - 29a","30a - 39a","40a - 59a","60 y más"]
[null,"Dislipidemia controlada","Persona atendida",{"$f":"SUM(E21:J21)","v":0}]
[null,"Dislipidemia en tratamiento","Persona atendida",0]
[null,"TOTAL","PERSONA ATENDIDA",{"$f":"SUM(E23:J23)","v":0},{"$f":"SUM(E21:E22)","v":0},{"$f":"SUM(F21:F22)","v":0},{"$f":"SUM(G21:G22)","v":0},{"$f":"SUM(H21:H22)","v":0},{"$f":"SUM(I21:I22)","v":0},{"$f":"SUM(J21:J22)","v":0}]
[]
[]
["PACIENTE HIPERTENSO DE NO ALTO RIESGO NO CONTROLADO, QUE RECIBE TRATAMIENTO (5001603)"]
[null,"DIAGNOSTICO","UNIDAD MEDIDA","TOTAL","05a - 11a","12a - 17a","18a - 29a","30a - 39a","40a - 59a","60 y más"]
[null,"Hipertensión esencial (primaria)","Persona atendida",{"$f":"SUM(E28:J28)","v":0}]
[]
["PACIENTE HIPERTENSO DE NO ALTO RIESGO Y CONTROLADO QUE RECIBE TRATAMIENTO (5001604)"]
[null,"DIAGNOSTICO","UNIDAD MEDIDA","TOTAL","05a - 11a","12a - 17a","18a - 29a","30a - 39a","40a - 59a","60 y más"]
[null,"Hipertensión esencial (primaria)","Persona atendida",{"$f":"SUM(E32:J32)","v":0}]
[]
["PACIENTES HIPERTENSOS CON TRATAMIENTO ESPECIALIZADO (5001606)"]
[null,"SERVICIO","UNIDAD MEDIDA","TOTAL","05a - 11a","12a - 17a","18a - 29a","30a - 39a","40a - 59a","60 y más"]
[null,"Nefrología","Persona atendida",{"$f":"SUM(E36:J36)","v":0}]
[null,"Cardiología","Persona atendida",0]
[null,"Oftalmología","Persona atendida",0]
[null,"Neurología","Persona atendida",0]
[null,"Nutrición","Persona atendida",0]
[null,"TOTAL","Persona atendida",{"$f":"SUM(E41:J41)","v":0},{"$f":"SUM(E39:E40)","v":0},{"$f":"SUM(F39:F40)","v":0},{"$f":"SUM(G39:G40)","v":0},{"$f":"SUM(H39:H40)","v":0},{"$f":"SUM(I39:I40)","v":0},{"$f":"SUM(J39:J40)","v":0}]
[]
[]
["PACIENTES HIPERTENSOS CON ESTRATIFICACIÓN DE RIESGO CARDIOVASCULAR (5001608)"]
[null,"NIVEL DE RIESGO","UNIDAD DE MEDIDA","Total","05a - 11a","12a - 17a","18a - 29a","30a - 39a","40a - 59a","60 y más"]
[null,"Bajo","Persona evaluada",{"$f":"SUM(E46:J46)","v":0}]
[null,"Moderado","Persona evaluada",0]
[null,"Alto","Persona evaluada",0]
[null,"Muy Alto","Persona evaluada",0]
[null,"TOTAL","Persona evaluada",{"$f":"SUM(E50:J50)","v":0},{"$f":"SUM(E48:E49)","v":0},{"$f":"SUM(F48:F49)","v":0},{"$f":"SUM(G48:G49)","v":0},{"$f":"SUM(H48:H49)","v":0},{"$f":"SUM(I48:I49)","v":0},{"$f":"SUM(J48:J49)","v":0}]
[]
[]
["PACIENTES CON ENFERMEDAD CARDIOMETABÓLICA ORGANIZADOS QUE RECIBEN EDUCACIÓN PARA EL CONTROL DE LA ENFERMEDAD (5001605)"]
[null,"SESION","UNIDAD DE MEDIDA","Nº","Participantes"]
[null,"Sesión Educativa","Personas con hipertensión"]
[null,null,"Personas con diabetes"]
[null,"Sesión Demostrativa","Personas con hipertensión"]
[null,null,"Personas con diabetes"]
[null,"Sesión de Grupo de Ayuda Mutua","Personas con hipertensión"]
[null,null,"Personas con diabetes"]
[{"$nulls":3},{"$f":"SUM(D55:D60)","v":0}]

{"sheet":"DM","index":2,"n_rows":63,"n_cols":10,"rows_kept":63,"merged":[[2,0,2,9]]}
[]
[]
["Actividades de Enfermedades No Trasmisibles"]
[]
[]
["CASOS DIAGNOSTICADOS"]
[null,"DIAGNOSTICO","UNIDAD MEDIDA","Total","05a - 11a","12a - 17a","18a - 29a","30a - 39a","40a - 59a","60 y más"]
[null,"Diabetes mellitus tipo 1","Caso",{"$f":"SUM(E8:J8)","v":0}]
[null,"Diabetes mellitus tipo 2","Caso",{"$f":"SUM(E9:J9)","v":0}]
[null,"Diabetes mellitus en el embarazo","Caso",0]
[null,"Otras diabetes mellitus","Caso",0]
[null,"Nefropatia diabética","Caso",0]
[null,"Retinopatía diabética","Caso",0]
[]
["TRATAMIENTO A PERSONAS CON DIAGNÓSTICO DE DIABETES (3000017)"]
["MANEJO BÁSICO DE CRISIS HIPOGLUCÉMICA O HIPERGLUCÉMICA EN PACIENTES DIABÉTICOS (5001701)"]
[null,"DIAGNOSTICO","UNIDAD MEDIDA","Total","05a - 11a","12a - 17a","18a - 29a","30a - 39a","40a - 59a","60 y más"]
[null,"Hipoglicemia en pacientes con diabetes tipo 1","Persona atendida",{"$f":"SUM(E18:J18)","v":0}]
[null,"Hipoglicemia en pacientes con diabetes tipo 2","Persona atendida",{"$f":"SUM(E19:J19)","v":0}]
[null,"Hiperglicemia en pacientes con diabetes tipo 1","Persona atendida",0]
[null,"Hiperglicemia en pacientes con diabetes tipo 2","Persona atendida",0]
[null,"TOTAL",null,{"$f":"SUM(E22:J22)","v":0},{"$f":"SUM(E18:E21)","v":0},{"$f":"SUM(F18:F21)","v":0},0,0,0,0]
[]
["PACIENTE DIABÉTICO NO COMPLICADO NO CONTROLADO CON TRATAMIENTO (5001702)"]
[null,"Diabetes Mellitus tipo 1, sin mención de complicaciones","Persona atendida",{"$f":"SUM(E25:J25)","v":0}]
[null,"Diabetes Mellitus tipo 2, sin mención de complicaciones","Persona atendida",0]
[null,"Otras Diabetes Mellitus Especificadas, sin mención de complicaciones","Persona atendida",0]
[null,"Diabetes Mellitus, no Especificada, sin mención de complicaciones","Persona atendida",0]
[null,"TOTAL",null,{"$f":"SUM(E29:J29)","v":0},{"$f":"SUM(E25:E28)","v":0},{"$f":"SUM(F25:F28)","v":0},{"$f":"SUM(G25:G28)","v":0},{"$f":"SUM(H25:H28)","v":0},{"$f":"SUM(I25:I28)","v":0},{"$f":"SUM(J25:J28)","v":0}]
[]
["PACIENTE DIABÉTICO NO COMPLICADO CONTROLADO CON TRATAMIENTO (5001703)"]
[null,"DIAGNOSTICO","UNIDAD MEDIDA","Total","05a - 11a","12a - 17a","18a - 29a","30a - 39a","40a - 59a","60 y más"]
[null,"Diabetes Mellitus tipo 1, sin mención de complicaciones","Persona atendida",{"$f":"SUM(E33:J33)","v":0}]
[null,"Diabetes Mellitus tipo 2, sin mención de complicaciones","Persona atendida",{"$f":"SUM(E34:J34)","v":0}]
[null,"Otras Diabetes Mellitus Especificadas, sin mención de complicaciones","Persona atendida",0]
[null,"Diabetes Mellitus, no Especificada, sin mención de complicaciones","Persona atendida",0]
[null,"TOTAL",null,{"$f":"SUM(E37:J37)","v":0},{"$f":"SUM(E33:E36)","v":0},{"$f":"SUM(F33:F36)","v":0},{"$f":"SUM(G33:G36)","v":0},{"$f":"SUM(H33:H36)","v":0},{"$f":"SUM(I33:I36)","v":0},{"$f":"SUM(J33:J36)","v":0}]
[]
["PACIENTES DIABETICOS CON TRATAMIENTO ESPECIALIZADO (5001704)"]
[null,"SERVICIO","UNIDAD MEDIDA","Total","05a - 11a","12a - 17a","18a - 29a","30a - 39a","40a - 59a","60 y más"]
[null,"Cardiología","Persona atendida",{"$f":"SUM(E41:J41)","v":0}]
[null,"Endocrinologia","Persona atendida",0]
[null,"Oftalmología","Persona atendida",0]
[null,"Neurología","Persona atendida",0]
[null,"Nefrología","Persona atendida",0]
[null,"Nutrición","Persona atendida",0]
[null,"TOTAL",null,{"$f":"SUM(E47:J47)","v":0},{"$f":"SUM(E41:E46)","v":0},{"$f":"SUM(F41:F46)","v":0},0,0,0,0]
[]
["COMORBILIDAD DE DIABETES MELLITUS"]
[null,"DIAGNOSTICO","UNIDAD MEDIDA","Total","05a - 11a","12a - 17a","18a - 29a","30a - 39a","40a - 59a","60 y más"]
[null,"Hipertensión arterial","Casos",{"$f":"SUM(E51:J51)","v":0}]
[null,"Tuberculosis pulmonar","Casos",0]
[null,"Trastorno de ansiedad","Casos",0]
[null,"Tiroiditis","Casos",0]
[null,"Diabetes gestacional","Casos",{"$f":"SUM(F55:I55)","v":0}]
[null,"TOTAL",null,{"$f":"SUM(D51:D55)","v":0},{"$f":"SUM(E51:E54)","v":0},{"$f":"SUM(F51:F55)","v":0},{"$f":"SUM(G51:G55)","v":0},0,0,{"$f":"SUM(J51:J54)","v":0}]
[]
["VALORACION DE COMPLICACIONES EN PERSONAS CON DIABETES (5001705)"]
[null,"DIAGNOSTICO","UNIDAD MEDIDA","Total","05a - 11a","12a - 17a","18a - 29a","30a - 39a","40a - 59a","60 y más"]
[null,"Diabetes Mellitus tipo 1","Persona atendida",{"$f":"SUM(E60:J60)","v":0}]
[null,"Diabetes Mellitus tipo 2","Persona atendida",0]
[null,"Otras Diabetes Mellitus Especificadas","Persona atendida",0]
[null,"Diabetes Mellitus, no Especificada","Persona atendida",0]